bitfinex/quotes_BTCUSD_20250418
["timestamp","ask_amount","ask_price","bid_price","bid_amount"]
[1744955609990,0.25234546,84589.0,84586.0,0.09457829]
[1744955610624,0.01182214,84587.0,84584.0,0.43457718]
[1744955610858,0.23644636,84586.0,84584.0,0.09457718]
[1744955611750,0.24826864,84586.0,84583.0,0.09458147]
[1744955612346,0.2482777,84583.0,84580.0,0.44342027]
[1744955613409,0.00474258,84582.0,84581.0,0.09458388]
[1744955613756,0.00474258,84582.0,84580.0,0.44342027]
[1744955614090,0.00474258,84582.0,84581.0,0.09458388]
[1744955615909,0.00474165,84582.0,84581.0,0.09458388]
[1744955616850,0.24827924,84584.0,84581.0,0.09458388]
[1744955617046,0.00474165,84582.0,84581.0,0.09458388]
[1744955617248,0.01182256,84584.0,84580.0,0.008836]
[1744955617451,0.00474165,84582.0,84581.0,0.09458388]
[1744955617652,0.2482745,84584.0,84581.0,0.09458388]
[1744955617865,0.00474165,84582.0,84581.0,0.09458388]
[1744955618080,0.2482745,84584.0,84581.0,0.09458388]
[1744955618297,0.00474165,84582.0,84581.0,0.09458388]
[1744955618525,0.2482745,84584.0,84581.0,0.09458388]
[1744955618728,0.00474165,84582.0,84581.0,0.09458388]
[1744955618944,0.2482745,84584.0,84582.0,0.43458265]
[1744955619516,0.01182256,84584.0,84582.0,0.43458265]
[1744955620277,0.24827319,84586.0,84583.0,0.43458081]
[1744955620494,0.01182256,84584.0,84582.0,0.09458248]
[1744955620854,0.24827204,84585.0,84582.0,0.09458248]
[1744955621301,0.24827468,84584.0,84581.0,0.34]
[1744955621934,0.24827468,84584.0,84581.0,0.4345835]
[1744955622391,0.24827001,84586.0,84570.0,0.174609]
[1744955622392,0.0118241,84573.0,84570.0,0.174609]
[1744955622539,0.0118241,84573.0,84572.0,0.1]
[1744955622962,0.24830619,84573.0,84572.0,0.1]
[1744955624580,0.24830912,84572.0,84570.0,0.34]
[1744955624787,0.24830912,84572.0,84571.0,0.00880937]
[1744955624992,0.24830912,84572.0,84570.0,0.34]
[1744955625885,0.24831206,84571.0,84568.0,0.09459826]
[1744955626059,0.24831206,84571.0,84569.0,0.43459721]
[1744955626773,0.24831206,84571.0,84569.0,0.34]
[1744955627347,0.23649048,84570.0,84569.0,0.34]
[1744955627534,0.248315,84570.0,84568.0,0.0945982]
[1744955627832,0.24831268,84571.0,84568.0,0.4345982]
[1744955628214,0.00469818,84570.0,84568.0,0.4345982]
[1744955628849,0.24830668,84573.0,84570.0,0.43459521]
[1744955629177,0.00470169,84572.0,84570.0,0.43459521]
[1744955629738,0.00470169,84572.0,84571.0,0.43459507]
[1744955630265,0.24830011,84576.0,84573.0,0.34]
[1744955630502,0.23647683,84575.0,84573.0,0.34]
[1744955630654,0.23647683,84575.0,84573.0,0.4345928]
[1744955631237,0.24830011,84576.0,84574.0,0.09459171]
[1744955631459,0.24830011,84576.0,84573.0,0.4345928]
[1744955631738,0.24830011,84576.0,84574.0,0.34]
[1744955631982,0.24829804,84576.0,84574.0,0.43459124]
[1744955632182,0.24829804,84576.0,84574.0,0.34]
[1744955633268,0.23647171,84577.0,84574.0,0.43459119]
[1744955633469,0.23647409,84576.0,84574.0,0.09459119]
[1744955636263,0.01182298,84581.0,84576.0,0.01182368]
[1744955636484,0.248273,84585.0,84582.0,0.09458263]
[1744955636680,0.23644042,84588.0,84586.0,0.09457753]
[1744955636885,0.01590722,84589.0,84587.0,0.09457701]
[1744955637105,0.00408536,84589.0,84587.0,0.09457718]
[1744955637670,0.00408536,84589.0,84588.0,0.09457606]
[1744955637861,0.00408536,84589.0,84588.0,0.43457606]
[1744955638103,0.00883507,84589.0,84588.0,0.43457606]
[1744955638319,0.00408536,84589.0,84588.0,0.43457606]
[1744955638509,0.00883507,84589.0,84588.0,0.43457606]
[1744955638697,0.00408536,84589.0,84588.0,0.43457606]
[1744955638897,0.00883507,84589.0,84588.0,0.43457606]
[1744955639211,0.00408536,84589.0,84588.0,0.43457606]
[1744955639407,0.00883507,84589.0,84588.0,0.43457606]
[1744955639910,0.24527243,84589.0,84588.0,0.34]
[1744955640311,0.25709429,84589.0,84587.0,0.34]
[1744955641255,0.25709429,84589.0,84586.0,0.09457823]
[1744955643926,0.2482632,84588.0,84585.0,0.43457736]
[1744955644136,0.01182228,84586.0,84583.0,0.43458154]
[1744955644518,0.00474269,84585.0,84583.0,0.43458154]
[1744955644914,0.00474269,84585.0,84584.0,0.09458053]
[1744955646163,0.00474269,84585.0,84583.0,0.09458154]
[1744955646361,0.00474269,84585.0,84584.0,0.09458053]
[1744955649592,0.00474269,84585.0,84583.0,0.09458154]
[1744955650380,0.00474269,84585.0,84584.0,0.09458053]
[1744955650734,0.23645413,84583.0,84582.0,0.34]
[1744955650900,0.25301919,84585.0,84582.0,0.34]
[1744955651128,0.00449553,84583.0,84582.0,0.34]
[1744955651354,0.2482765,84585.0,84582.0,0.43458188]
[1744955651476,0.00449553,84583.0,84582.0,0.09458188]
[1744955651708,0.24826762,84587.0,84584.0,0.09457964]
[1744955653785,0.24826762,84587.0,84585.0,0.43457924]
[1744955654225,0.23644574,84586.0,84585.0,0.34]
[1744955654533,0.24826762,84587.0,84585.0,0.34]
[1744955654735,0.23644574,84586.0,84585.0,0.34]
[1744955655116,0.24826802,84586.0,84584.0,0.43458012]
[1744955658265,0.00450323,84585.0,84584.0,0.43458012]
[1744955658839,0.24095177,84585.0,84584.0,0.34]
[1744955659037,0.24095177,84585.0,84583.0,0.0945807]
[1744955659038,0.00450323,84585.0,84583.0,0.0945807]
[1744955663624,0.00450323,84585.0,84584.0,0.09458053]
[1744955664443,0.23646005,84581.0,84577.0,0.09458516]
[1744955664740,0.00449446,84580.0,84578.0,0.4345864]
[1744955664954,0.00449446,84580.0,84579.0,0.43458609]
[1744955665129,0.23647155,84577.0,84575.0,0.47256]
[1744955665557,0.00448745,84576.0,84575.0,0.56714971]
[1744955665936,0.24829207,84578.0,84576.0,0.09458943]
[1744955666097,0.00448745,84576.0,84575.0,0.34]
[1744955666298,0.24096115,84576.0,84575.0,0.34]
[1744955669426,0.23649068,84570.0,84568.0,0.00887134]
[1744955669626,0.00445368,84569.0,84568.0,0.43459842]
[1744955669853,0.01182438,84571.0,84568.0,0.34]
[1744955670184,0.23649327,84569.0,84568.0,0.34]
[1744955670587,0.24094695,84569.0,84568.0,0.34]
[1744955671033,0.25277161,84569.0,84567.0,0.34]
[1744955671166,0.23649659,84568.0,84567.0,0.34]
[1744955671368,0.23649659,84568.0,84567.0,0.34882287]
[1744955671569,0.24094852,84568.0,84567.0,0.34982287]
[1744955671995,0.00445193,84568.0,84567.0,0.34982287]
[1744955672399,0.24831547,84570.0,84567.0,0.44442148]
[1744955672557,0.00445193,84568.0,84567.0,0.44442148]
[1744955672763,0.24831547,84570.0,84568.0,0.09459813]
[1744955673414,0.00445368,84569.0,84568.0,0.09459813]
[1744955678422,0.00445368,84569.0,84567.0,0.44442227]
[1744955678598,0.00445368,84569.0,84568.0,0.09459842]
[1744955680803,0.00445368,84569.0,84567.0,0.44442227]
[1744955683442,0.00445368,84569.0,84568.0,0.09459842]
[1744955684820,0.01182424,84572.0,84568.0,0.09459842]
[1744955685057,0.00445975,84569.0,84568.0,0.09459842]
[1744955685241,0.24830358,84574.0,84571.0,0.09459487]
[1744955685542,0.24830358,84574.0,84572.0,0.34]
[1744955687346,0.23648209,84573.0,84572.0,0.34]
[1744955688291,0.24094885,84573.0,84572.0,0.34]
[1744955688717,0.00446676,84573.0,84572.0,0.43459395]
[1744955688903,0.2483006,84575.0,84572.0,0.43459395]
[1744955689105,0.00446852,84574.0,84572.0,0.09459395]
[1744955689503,0.00446852,84574.0,84573.0,0.09459283]
[1744955689728,0.00446852,84574.0,84572.0,0.09459395]
[1744955691789,0.25277196,84574.0,84572.0,0.09459395]
[1744955692331,0.00446852,84574.0,84573.0,0.09459283]
[1744955692582,0.00446852,84574.0,84572.0,0.09459395]
[1744955692786,0.00446852,84574.0,84573.0,0.09459283]
[1744955692997,0.00446852,84574.0,84572.0,0.09459395]
[1744955694467,0.25277178,84574.0,84570.0,0.09459542]
[1744955694762,0.25277178,84574.0,84571.0,0.09459461]
[1744955696780,0.25277178,84574.0,84572.0,0.43459358]
[1744955698440,0.25277178,84574.0,84572.0,0.09459358]
[1744955707741,0.0118241,84573.0,84570.0,0.03211672]
[1744955707942,0.00447195,84572.0,84570.0,0.03211672]
[1744955708893,0.00447195,84572.0,84571.0,0.43459507]
[1744955709713,0.00447195,84572.0,84571.0,0.2735206]
[1744955709994,0.00447195,84572.0,84571.0,0.09459507]
[1744955712671,0.00447195,84572.0,84570.0,0.03211672]
[1744955714221,0.00447195,84572.0,84571.0,0.0709463]
[1744955714718,0.00447229,84572.0,84570.0,0.03211672]
[1744955718793,0.00447229,84572.0,84571.0,0.0709463]
[1744955719016,0.00447229,84572.0,84571.0,0.4109463]
[1744955719133,0.23648258,84573.0,84571.0,0.4109463]
[1744955719338,0.00447229,84572.0,84571.0,0.4109463]
[1744955719738,0.24830326,84574.0,84571.0,0.4109463]
[1744955719963,0.00447229,84572.0,84571.0,0.0709463]
[1744955720181,0.24830326,84574.0,84571.0,0.0709463]
[1744955720379,0.24830326,84574.0,84571.0,0.4109463]
[1744955720380,0.00447229,84572.0,84571.0,0.4109463]
[1744955720583,0.24830326,84574.0,84571.0,0.4109463]
[1744955720755,0.00447229,84572.0,84571.0,0.4109463]
[1744955721108,0.24830326,84574.0,84572.0,0.07094518]
[1744955722019,0.24830079,84575.0,84572.0,0.07094518]
[1744955722171,0.24826456,84588.0,84569.0,0.0453]
[1744955722374,0.24826456,84588.0,84579.0,0.07093959]
[1744955722375,0.2364543,84583.0,84579.0,0.07093959]
[1744955722584,0.24827544,84584.0,84580.0,0.07093849]
[1744955722786,0.0118227,84583.0,84581.0,0.07093791]
[1744955723332,0.24827544,84584.0,84581.0,0.07093791]
[1744955730023,0.24827544,84584.0,84582.0,0.07093689]
[1744955730706,0.01182256,84584.0,84582.0,0.07093689]
[1744955730915,0.2482741,84584.0,84582.0,0.07093689]
[1744955733258,0.00450444,84583.0,84582.0,0.07093689]
[1744955736492,0.01632714,84583.0,84581.0,0.07093769]
[1744955736694,0.25278186,84583.0,84581.0,0.07093769]
[1744955738580,0.23645692,84582.0,84580.0,0.07093849]
[1744955738786,0.01182298,84581.0,84579.0,0.07093903]
[1744955739029,0.01632391,84581.0,84579.0,0.07093903]
[1744955739229,0.01632391,84581.0,84577.0,0.07094046]
[1744955739443,0.25278402,84581.0,84578.0,0.07093988]
[1744955739639,0.25278402,84581.0,84579.0,0.07093958]
[1744955739903,0.25278402,84581.0,84580.0,0.07093875]
[1744955739904,0.00450093,84581.0,84580.0,0.07093875]
[1744955741047,0.24595501,84584.0,84580.0,0.07093875]
[1744955741280,0.00412585,84581.0,84580.0,0.07093875]
[1744955741463,0.01418778,84583.0,84580.0,0.07093875]
[1744955741846,0.25064228,84583.0,84580.0,0.07093875]
[1744955742064,0.00412161,84582.0,84580.0,0.07093875]
[1744955743338,0.00412161,84582.0,84581.0,0.07093791]
[1744955743565,0.01418778,84583.0,84580.0,0.07093875]
[1744955743863,0.00412161,84582.0,84580.0,0.07093875]
[1744955744104,0.00412161,84582.0,84581.0,0.07093791]
[1744955744516,0.24827415,84584.0,84581.0,0.07093791]
[1744955744734,0.00236508,84583.0,84581.0,0.07093791]
[1744955744936,0.00412161,84582.0,84581.0,0.07093791]
[1744955746978,0.00236508,84584.0,84582.0,0.07093631]
[1744955748066,0.00236508,84584.0,84583.0,0.07093624]
[1744955748284,0.0141875,84585.0,84583.0,0.07093624]
[1744955748615,0.00412512,84584.0,84583.0,0.07093624]
[1744955749478,0.00412512,84584.0,84583.0,0.45783624]
[1744955749675,0.00408536,84589.0,84588.0,0.07093204]
[1744955750381,0.01029123,84589.0,84588.0,0.07093204]
[1744955750690,0.01029123,84589.0,84588.0,0.0783099]
[1744955753401,0.01029123,84589.0,84588.0,0.07093204]
[1744955758041,0.01029123,84589.0,84588.0,0.0783099]
[1744955758489,0.01029123,84589.0,84588.0,0.07093204]
[1744955759549,0.01029123,84589.0,84588.0,0.0783098]
[1744955760617,0.01029123,84589.0,84588.0,0.07093204]
[1744955761716,0.01029123,84589.0,84588.0,0.07830984]
[1744955767534,0.01029123,84589.0,84588.0,0.07093204]
[1744955768626,0.01029123,84589.0,84588.0,0.07830996]
[1744955776581,0.01029123,84589.0,84588.0,0.10195398]
[1744955777735,0.01029123,84589.0,84588.0,0.09457606]
[1744955802192,0.01265631,84589.0,84588.0,0.09457606]
[1744955805488,0.01029123,84589.0,84588.0,0.09457606]
[1744955812179,0.01265631,84589.0,84587.0,0.07093261]
[1744955812589,0.26091587,84589.0,84587.0,0.09457718]
[1744955812794,0.25855079,84589.0,84587.0,0.09457718]
[1744955813126,0.00236508,84588.0,84587.0,0.09457718]
[1744955813475,0.00814406,84588.0,84587.0,0.09457718]
[1744955817066,0.00577898,84588.0,84587.0,0.09457718]
[1744955823044,0.00577898,84588.0,84586.0,0.03821196]
[1744955823451,0.00577898,84588.0,84587.0,0.09457718]
[1744955834678,0.00577898,84588.0,84587.0,0.43457718]
[1744955835086,0.00408536,84589.0,84588.0,0.43457606]
[1744955835558,0.1,84590.0,84589.0,0.43457494]
[1744955835783,0.04098169,84590.0,84589.0,0.48107494]
[1744955836408,0.04098169,84590.0,84589.0,0.48989049]
[1744955837042,0.0008424,84593.0,84592.0,0.43457159]
[1744955840563,0.0008424,84593.0,84592.0,0.44784571]
[1744955840817,0.0008424,84593.0,84592.0,0.56729362]
[1744955841037,0.0008424,84593.0,84592.0,0.76019362]
[1744955841251,0.0008424,84593.0,84592.0,0.77473447]
[1744955842331,0.01,84614.0,84607.0,0.09455482]
[1744955842555,0.02181837,84614.0,84607.0,0.09455482]
[1744955842923,0.02181837,84614.0,84607.0,0.10193094]
[1744955844617,0.25818821,84614.0,84607.0,0.10193094]
[1744955845020,0.00582639,84608.0,84607.0,0.10193094]
[1744955849890,0.25818605,84614.0,84610.0,0.09455095]
[1744955850296,0.24819318,84612.0,84609.0,0.09455245]
[1744955850830,0.24819318,84612.0,84607.0,0.09455482]
[1744955850831,0.24819107,84613.0,84610.0,0.09455059]
[1744955851035,0.011,84614.0,84610.0,0.09455059]
[1744955851255,0.011,84614.0,84612.0,0.09454875]
[1744955851408,0.011,84614.0,84613.0,0.09454811]
[1744955852387,0.011,84614.0,84613.0,0.43454811]
[1744955854608,0.011,84614.0,84613.0,0.44333644]
[1744955871438,0.01,84614.0,84613.0,0.44333644]
[1744955878300,0.01,84614.0,84613.0,0.45071143]
[1744955878857,0.01,84614.0,84613.0,0.4617217]
[1744955890737,0.01,84614.0,84613.0,0.45071143]
[1744955892844,0.01,84614.0,84613.0,0.46172899]
[1744955906352,0.009,84614.0,84613.0,0.46172899]
[1744955909323,0.008,84614.0,84613.0,0.45071143]
[1744955909561,0.008,84614.0,84613.0,0.44333644]
[1744955910284,0.008,84614.0,84613.0,0.4507113]
[1744955911319,0.008,84614.0,84613.0,0.46172859]
[1744955915188,0.008,84614.0,84613.0,0.4507113]
[1744955916156,0.23634176,84624.0,84621.0,0.09453918]
[1744955916555,0.23679296,84624.0,84622.0,0.00737486]
[1744955916936,0.0004512,84624.0,84623.0,0.00737486]
[1744955917139,0.0004512,84624.0,84623.0,0.01838957]
[1744955917339,0.0014512,84624.0,84623.0,0.01838957]
[1744955917740,0.0014512,84624.0,84623.0,0.11292651]
[1744955924476,0.0014512,84624.0,84623.0,0.11292649]
[1744955926765,0.0014512,84624.0,84623.0,0.01838955]
[1744955926972,0.0014512,84624.0,84623.0,0.23109767]
[1744955928554,0.0014512,84624.0,84622.0,0.21270982]
[1744955928778,0.0014512,84624.0,84623.0,0.21270812]
[1744955931402,0.0004512,84624.0,84623.0,0.21270812]
[1744955931630,0.0014512,84624.0,84623.0,0.21270812]
[1744955933916,0.0014512,84624.0,84619.0,0.13296]
[1744955934266,0.0014512,84624.0,84620.0,0.21271371]
[1744955934669,0.0014512,84624.0,84623.0,0.21270812]
[1744955934880,0.0014512,84624.0,84621.0,0.21271315]
[1744955935360,0.0014512,84624.0,84622.0,0.21271039]
[1744955938405,0.0014512,84624.0,84621.0,0.21271315]
[1744955939231,0.0014512,84624.0,84619.0,0.3456708]
[1744955939549,0.0014512,84624.0,84620.0,0.21271357]
[1744955939948,0.0014512,84624.0,84622.0,0.21270896]
[1744955940603,0.0014512,84624.0,84621.0,0.21271239]
[1744955941010,0.0014512,84624.0,84622.0,0.00737514]
[1744955941186,0.0014512,84624.0,84623.0,0.01100978]
[1744955941465,0.0014512,84624.0,84623.0,0.01838492]
[1744955941701,0.0004512,84624.0,84623.0,0.01838492]
[1744955941925,0.0004512,84624.0,84620.0,0.21271357]
[1744955942150,0.0004512,84624.0,84621.0,0.21271239]
[1744955946798,0.0004512,84624.0,84620.0,0.21271534]
[1744955947025,0.0004512,84624.0,84620.0,0.21271329]
[1744955948249,0.0004512,84624.0,84621.0,0.21271248]
[1744955949556,0.0004512,84624.0,84620.0,0.21271329]
[1744955951242,0.0004512,84624.0,84621.0,0.21271211]
[1744955951449,0.0004512,84624.0,84620.0,0.21271329]
[1744955951662,0.0004512,84624.0,84619.0,0.34567334]
[1744955952071,0.0004512,84624.0,84619.0,0.13296]
[1744955952454,0.00474797,84623.0,84619.0,0.13296]
[1744955952696,0.00474797,84623.0,84615.0,0.34]
[1744955952837,0.00474797,84623.0,84607.0,0.0461]
[1744955952838,0.23636383,84616.0,84612.0,0.13296]
[1744955953042,0.13126614,84615.0,84612.0,0.13296]
[1744955953445,0.11944791,84615.0,84612.0,0.13296]
[1744955953656,0.11944791,84615.0,84602.0,0.01845944]
[1744955953657,0.24819395,84613.0,84602.0,0.01845944]
[1744955953933,0.13126656,84612.0,84602.0,0.01845944]
[1744955954080,0.01181907,84609.0,84602.0,0.01845944]
[1744955954276,0.11944791,84608.0,84604.0,0.00737689]
[1744955954887,0.11944791,84608.0,84605.0,0.00737689]
[1744955955323,0.11944791,84608.0,84606.0,0.01100547]
[1744955956522,0.11944791,84608.0,84607.0,0.01100547]
[1744955960423,0.24816769,84621.0,84607.0,0.05940547]
[1744955960607,0.01181781,84618.0,84610.0,0.174609]
[1744955960755,0.11944791,84617.0,84610.0,0.174609]
[1744955961582,0.13126586,84617.0,84611.0,0.01100547]
[1744955962337,0.13126586,84617.0,84612.0,0.01100547]
[1744955963113,0.11944791,84617.0,84612.0,0.01100547]
[1744955963677,0.13126586,84617.0,84613.0,0.01100547]
[1744955964311,0.11944791,84617.0,84613.0,0.01100547]
[1744955964718,0.11944791,84617.0,84614.0,0.01100547]
[1744955966012,0.11944791,84617.0,84615.0,0.01100547]
[1744955967164,0.11944791,84617.0,84616.0,0.01100547]
[1744955967927,0.0014512,84624.0,84616.0,0.01100547]
[1744955968134,0.11944791,84622.0,84616.0,0.20009339]
[1744955968362,0.0014512,84624.0,84616.0,0.20009339]
[1744955968363,0.0014512,84624.0,84621.0,0.18907836]
[1744955968539,0.0014512,84624.0,84622.0,0.20008159]
[1744955968753,0.0014512,84624.0,84622.0,0.01100547]
[1744955970390,0.0014512,84624.0,84617.0,0.18908703]
[1744955970581,0.0014512,84624.0,84617.0,0.18908672]
[1744955971042,0.0014512,84624.0,84619.0,0.18908262]
[1744955971641,0.0014512,84624.0,84617.0,0.18908672]
[1744955972195,0.0014512,84624.0,84619.0,0.18908271]
[1744955973349,0.0014512,84624.0,84622.0,0.18907612]
[1744955973888,0.0014512,84624.0,84622.0,0.23657612]
[1744955975954,0.0014512,84624.0,84622.0,0.24395128]
[1744955977747,0.0014512,84624.0,84622.0,0.23657612]
[1744955978169,0.0014512,84624.0,84622.0,0.18907612]
[1744955983159,0.0014512,84624.0,84622.0,0.20005908]
[1744955985682,0.0014512,84624.0,84621.0,0.18907836]
[1744955986197,0.0014512,84624.0,84620.0,0.15868906]
[1744955986402,0.0014512,84624.0,84621.0,0.18907665]
[1744955986606,0.0014512,84624.0,84622.0,0.18907612]
[1744955991338,0.0004512,84624.0,84622.0,0.18907612]
[1744956007402,0.0004512,84624.0,84622.0,0.28467612]
[1744956010909,0.0004512,84624.0,84622.0,0.23627612]
[1744956017640,0.0004512,84624.0,84623.0,0.18907389]
[1744956024013,0.00517978,84624.0,84623.0,0.18907389]
[1744956024602,0.0004512,84624.0,84623.0,0.18907389]
[1744956025628,0.0051713,84624.0,84623.0,0.18907389]
[1744956029490,0.23635002,84621.0,84618.0,0.18908479]
[1744956029645,0.24816741,84621.0,84617.0,0.18908333]
[1744956029851,0.24816741,84621.0,84614.0,0.34]
[1744956029852,0.01181795,84617.0,84614.0,0.34]
[1744956030049,0.00468178,84616.0,84614.0,0.52909379]
[1744956030459,0.01181781,84618.0,84614.0,0.52909379]
[1744956030644,0.00467828,84615.0,84614.0,0.52909379]
[1744956031062,0.01181767,84619.0,84615.0,0.1890901]
[1744956031675,0.24817123,84619.0,84615.0,0.1890901]
[1744956031877,0.01181837,84614.0,84611.0,0.1322]
[1744956032078,0.01181823,84615.0,84611.0,0.1322]
[1744956032326,0.11944791,84615.0,84611.0,0.1322]
[1744956032531,0.11944791,84615.0,84612.0,0.18909805]
[1744956032700,0.11944791,84615.0,84611.0,0.32129878]
[1744956033054,0.11944791,84615.0,84612.0,0.18909847]
[1744956033231,0.13126614,84615.0,84612.0,0.18909847]
[1744956033431,0.11944791,84615.0,84613.0,0.1890961]
[1744956033629,0.11944791,84615.0,84614.0,0.189094]
[1744956034057,0.001,84619.0,84614.0,0.046]
[1744956034254,0.001,84619.0,84618.0,0.18908506]
[1744956035441,0.00566625,84619.0,84618.0,0.18908506]
[1744956040702,0.00566625,84619.0,84617.0,0.18908697]
[1744956043556,0.01181781,84618.0,84614.0,0.046]
[1744956043740,0.24817935,84617.0,84614.0,0.18909298]
[1744956043974,0.24818204,84616.0,84613.0,0.18909573]
[1744956044197,0.25284596,84616.0,84613.0,0.18909573]
[1744956044480,0.13592992,84616.0,84614.0,0.18909328]
[1744956044726,0.12411183,84616.0,84614.0,0.18909328]
[1744956044968,0.12411183,84616.0,84615.0,0.18909176]
[1744956056904,0.11944791,84616.0,84615.0,0.18909176]
[1744956058282,0.12410576,84616.0,84615.0,0.18909176]
[1744956066320,0.24818655,84614.0,84611.0,0.18909993]
[1744956066524,0.11944791,84613.0,84610.0,0.20756167]
[1744956066697,0.12410045,84613.0,84611.0,0.18909914]
[1744956067102,0.12410045,84613.0,84612.0,0.18909847]
[1744956080130,0.12410045,84613.0,84612.0,0.23459847]
[1744956080369,0.00465254,84613.0,84612.0,0.23459847]
[1744956080837,0.24815366,84625.0,84612.0,0.23459847]
[1744956080838,0.01181711,84623.0,84621.0,0.18907658]
[1744956081096,0.11944791,84622.0,84621.0,0.18907658]
[1744956081318,0.12413062,84622.0,84621.0,0.18907658]
[1744956082405,0.12413062,84622.0,84620.0,0.1890796]
[1744956083039,0.3604758,84622.0,84620.0,0.1890796]
[1744956083639,0.37229305,84622.0,84618.0,0.18908452]
[1744956084385,0.24816972,84620.0,84615.0,0.01181823]
[1744956084586,0.24817148,84619.0,84615.0,0.20090988]
[1744956084726,0.25285805,84619.0,84615.0,0.20090988]
[1744956085169,0.23636071,84617.0,84615.0,0.20090988]
[1744956085597,0.00467606,84616.0,84615.0,0.20090988]
[1744956085737,0.23635979,84617.0,84615.0,0.01181823]
[1744956085977,0.00467606,84616.0,84615.0,0.20090999]
[1744956086391,0.00467606,84616.0,84615.0,0.01181823]
[1744956086600,0.24103962,84616.0,84613.0,0.37551995]
[1744956087042,0.00467606,84616.0,84614.0,0.1890926]
[1744956088485,0.00467606,84616.0,84615.0,0.18909176]
[1744956089122,0.00467606,84616.0,84614.0,0.1890926]
[1744956089551,0.2410381,84616.0,84614.0,0.1890926]
[1744956090492,0.00467606,84616.0,84615.0,0.18909176]
[1744956094492,0.23633551,84626.0,84614.0,0.20091097]
[1744956094695,0.01226817,84624.0,84620.0,0.18908023]
[1744956094833,0.01181711,84623.0,84620.0,0.20089776]
[1744956095665,0.00471223,84622.0,84620.0,0.20089776]
[1744956095939,0.23635366,84619.0,84616.0,0.25030558]
[1744956096153,0.23635366,84619.0,84617.0,0.18908729]
[1744956096154,0.00469821,84618.0,84617.0,0.18908729]
[1744956099273,0.24816887,84620.0,84617.0,0.18908729]
[1744956099478,0.00469821,84618.0,84617.0,0.18908729]
[1744956099684,0.24816887,84620.0,84617.0,0.18908729]
[1744956099838,0.00469821,84618.0,84617.0,0.18908729]
[1744956100038,0.24816887,84620.0,84617.0,0.18908729]
[1744956100239,0.00469821,84618.0,84617.0,0.18908729]
[1744956100452,0.24816887,84620.0,84617.0,0.18908729]
[1744956100659,0.00469821,84618.0,84617.0,0.18908729]
[1744956100861,0.24816887,84620.0,84618.0,0.18908494]
[1744956101489,0.24816887,84620.0,84618.0,0.18908506]
[1744956103391,0.24816887,84620.0,84617.0,0.20090524]
[1744956105068,0.24816887,84620.0,84617.0,0.18908729]
[1744956107551,0.23635448,84619.0,84617.0,0.18908729]
[1744956109974,0.24816473,84622.0,84616.0,0.06115488]
[1744956110166,0.23634814,84621.0,84618.0,0.18908095]
[1744956110309,0.23634814,84621.0,84619.0,0.18908262]
[1744956110509,0.00470522,84620.0,84619.0,0.18908262]
[1744956110710,0.01181725,84622.0,84619.0,0.18908262]
[1744956110907,0.00470873,84621.0,84619.0,0.18908226]
[1744956111249,0.25287515,84621.0,84618.0,0.20089876]
[1744956111491,0.00470873,84621.0,84619.0,0.18908251]
[1744956111721,0.00470873,84621.0,84620.0,0.23448059]
[1744956111957,0.0004512,84624.0,84622.0,0.18907543]
[1744956112195,0.00471573,84623.0,84622.0,0.18907543]
[1744956112466,0.01653284,84623.0,84620.0,0.23448059]
[1744956112709,0.01653284,84623.0,84621.0,0.18907784]
[1744956112941,0.00471573,84623.0,84621.0,0.18907784]
[1744956113191,0.00471573,84623.0,84622.0,0.18907612]
[1744956113670,0.00471573,84623.0,84620.0,0.0454]
[1744956113901,0.00471573,84623.0,84620.0,0.23448049]
[1744956113902,0.01653284,84623.0,84620.0,0.23448049]
[1744956114163,0.24861264,84624.0,84621.0,0.18907789]
[1744956114372,0.00471524,84622.0,84621.0,0.18907789]
[1744956114879,0.24816226,84623.0,84615.0,0.34]
[1744956115114,0.23634801,84621.0,84618.0,0.18908425]
[1744956115371,0.23634801,84621.0,84618.0,0.18908395]
[1744956115583,0.00470824,84620.0,84619.0,0.18908283]
[1744956115937,0.24816293,84622.0,84619.0,0.18908283]
[1744956116138,0.00471174,84621.0,84619.0,0.18908283]
[1744956119024,0.25287828,84621.0,84619.0,0.18908267]
[1744956120471,0.25287828,84621.0,84618.0,0.20090176]
[1744956120624,0.25287828,84621.0,84618.0,0.18908395]
[1744956122257,0.25287828,84621.0,84619.0,0.18908189]
[1744956122860,0.23635174,84620.0,84618.0,0.18908395]
[1744956123009,0.00471174,84621.0,84619.0,0.18908272]
[1744956123236,0.00470473,84619.0,84618.0,0.18908395]
[1744956123439,0.01181725,84622.0,84620.0,0.18908059]
[1744956125693,0.00471174,84621.0,84620.0,0.18908059]
[1744956126020,0.2481601,84623.0,84620.0,0.18908059]
[1744956126185,0.00471174,84621.0,84620.0,0.18908059]
[1744956126384,0.2481601,84623.0,84620.0,0.18908059]
[1744956126599,0.00471174,84621.0,84620.0,0.18908059]
[1744956126806,0.2481601,84623.0,84620.0,0.18908059]
[1744956127126,0.00471174,84621.0,84620.0,0.18908059]
[1744956127654,0.2481601,84623.0,84620.0,0.18908059]
[1744956127854,0.00471174,84621.0,84620.0,0.18908059]
[1744956127974,0.24816142,84623.0,84620.0,0.18908059]
[1744956128179,0.00471524,84622.0,84620.0,0.18908059]
[1744956131797,0.00471524,84622.0,84621.0,0.18907836]
[1744956135567,0.24860804,84624.0,84621.0,0.18907836]
[1744956135906,0.00471651,84623.0,84621.0,0.18907836]
[1744956136485,0.252878,84623.0,84620.0,0.18908058]
[1744956136933,0.01653362,84623.0,84621.0,0.18907712]
[1744956137225,0.00471651,84623.0,84621.0,0.18907712]
[1744956137454,0.00471651,84623.0,84622.0,0.18907612]
[1744956138382,0.00471651,84623.0,84622.0,0.23797612]
[1744956142798,0.0004512,84624.0,84623.0,0.18907389]
[1744956144924,0.00517121,84624.0,84623.0,0.18907389]
[1744956145125,0.0004512,84624.0,84623.0,0.18907389]
[1744956145286,0.00517121,84624.0,84623.0,0.18907389]
[1744956145484,0.0004512,84624.0,84623.0,0.18907389]
[1744956145695,0.00517121,84624.0,84623.0,0.18907389]
[1744956145900,0.0004512,84624.0,84623.0,0.18907389]
[1744956146099,0.00517121,84624.0,84623.0,0.18907389]
[1744956154446,0.0004512,84624.0,84623.0,0.18907389]
[1744956154881,0.00518158,84624.0,84623.0,0.18907389]
[1744956155106,0.0004512,84624.0,84623.0,0.18907389]
[1744956155345,0.00518158,84624.0,84623.0,0.18907389]
[1744956155552,0.0004512,84624.0,84623.0,0.18907389]
[1744956155749,0.00518158,84624.0,84623.0,0.18907389]
[1744956155951,0.0004512,84624.0,84623.0,0.18907389]
[1744956156123,0.00518158,84624.0,84623.0,0.18907389]
[1744956156323,0.0004512,84624.0,84623.0,0.18907389]
[1744956156554,0.00518158,84624.0,84623.0,0.18907389]
[1744956156725,0.0004512,84624.0,84623.0,0.18907389]
[1744956156927,0.00518158,84624.0,84623.0,0.18907389]
[1744956165616,0.00496887,84624.0,84623.0,0.18907389]
[1744956172159,0.00023849,84624.0,84623.0,0.18907389]
[1744956172730,0.00496022,84624.0,84623.0,0.18907389]